fUSD/lending_fUSD_20260308
["ID","MTS","AMOUNT","RATE_DAILY","PERIOD"]
[407988188,1772975441530,-201.73,0.00019087,2]
[407988189,1772975441539,-151.0,0.00019109,2]
[407988190,1772975441548,-745.65223616,0.00019109,2]
[407988191,1772975441559,-5000.0,0.00019152,2]
[407988192,1772975441571,-3626.662,0.00019164,2]
[407988193,1772975441580,-162.784,0.00019164,2]
[407988194,1772975441589,-151.0,0.00019164,2]
[407988195,1772975441598,-773.2413689,0.00019164,2]
[407988196,1772975441607,-2500.0,0.00019164,2]
[407988197,1772975441616,-500.0,0.00019164,2]
[407988198,1772975441625,-1219.58548492,0.00019164,2]
[407988199,1772975441633,-150.0,0.00019178,2]
[407988200,1772975441642,-350.0,0.0001918,2]
[407988201,1772975441651,-2000.0,0.000192,2]
[407988202,1772975441660,-1541.03721467,0.000192,2]
[407988203,1772975441669,-151.0,0.00019219,2]
[407988204,1772975441678,-801.85129955,0.00019219,2]
[407988205,1772975441687,-208.0,0.00019268,2]
[407988206,1772975441696,-151.0,0.00019274,2]
[407988207,1772975441705,-831.51979763,0.00019274,2]
[407988208,1772975441714,-500.0,0.00019316,2]
[407988209,1772975441723,-151.0,0.00019329,2]
[407988210,1772975441732,-862.28603014,0.00019329,2]
[407988211,1772975441741,-9999.99,0.00019339,2]
[407988212,1772975441750,-2774.89,0.00019339,2]
[407988213,1772975441760,-151.0,0.00019384,2]
[407988214,1772975441769,-894.19061326,0.00019384,2]
[407988215,1772975441778,-350.0,0.00019402,2]
[407988216,1772975441787,-201.73,0.00019426,2]
[407988217,1772975441796,-168.0,0.00019433,2]
[407988218,1772975441805,-151.0,0.00019439,2]
[407988219,1772975441815,-927.27566595,0.00019439,2]
[407988220,1772975441824,-208.0,0.0001948,2]
[407988221,1772975441833,-151.0,0.00019494,2]
[407988222,1772975441842,-961.58486559,0.00019494,2]
[407988223,1772975441851,-1000.0,0.000195,2]
[407988224,1772975441860,-32923.6528,0.000195,2]
[407988225,1772975441869,-181.08010149,0.00019547,2]
[407988226,1772975441878,-272.62944185,0.00019547,2]
[407988227,1772975441887,-300.0,0.00019547,2]
[407988228,1772975441896,-151.0,0.00019549,2]
[407988229,1772975441905,-997.16350561,0.00019549,2]
[407988230,1772975441914,-205.0,0.00019577,2]
[407988231,1772975441923,-739.19005411,0.000196,2]
[407988232,1772975441932,-1078.66842901,0.000196,2]
[407988233,1772975441941,-1029.30589898,0.000196,2]
[407988234,1772975441950,-1078.37159495,0.000196,2]
[407988235,1772975441959,-1147.43947948,0.000196,2]
[407988236,1772975441967,-1097.09321188,0.000196,2]
[407988237,1772975441976,-1059.93567826,0.000196,2]
[407988238,1772975441985,-1042.80926417,0.000196,2]
[407988239,1772975441994,-1106.87492399,0.000196,2]
[407988240,1772975442003,-1140.15684995,0.000196,2]
[407988241,1772975442012,-1137.8029877,0.000196,2]
[407988242,1772975442021,-1130.91622504,0.000196,2]
[407988243,1772975442030,-1019.29084197,0.000196,2]
[407988244,1772975442039,-1127.80126588,0.000196,2]
[407988245,1772975442048,-1090.77163346,0.000196,2]
[407988246,1772975442056,-1133.13983152,0.000196,2]
[407988247,1772975442065,-1099.79073059,0.000196,2]
[407988248,1772975442073,-1081.11135547,0.000196,2]
[407988249,1772975442082,-1048.28792873,0.000196,2]
[407988250,1772975442091,-1094.59690945,0.000196,2]
[407988251,1772975442100,-1142.78836869,0.000196,2]
[407988252,1772975442109,-1108.92585301,0.000196,2]
[407988253,1772975442117,-1108.5488962,0.000196,2]
[407988254,1772975442126,-1000.44890917,0.000196,2]
[407988255,1772975442135,-1003.06403404,0.000196,2]
[407988256,1772975442144,-1392.0350553,0.000196,2]
[407988257,1772975442153,-1224.02057257,0.000196,2]
[407988258,1772975442162,-2000.0,0.000196,2]
[407988259,1772975442175,-151.0,0.00019604,2]
[407988260,1772975442184,-781.25,0.0001963,2]
[407988261,1772975442194,-151.0,0.00019659,2]
[407988262,1772975442203,-2000.0,0.000197,2]
[407988263,1772975442214,-2000.0,0.000197,2]
[407988264,1772975442224,-205.0,0.0001971,2]
[407988265,1772975442237,-836.46733329,0.00019712,2]
[407988266,1772975442250,-151.0,0.00019714,2]
[407988267,1772975442259,-250.0,0.00019726,2]
[407988268,1772975442271,-201.73,0.00019765,2]
[407988269,1772975442282,-151.0,0.00019769,2]
[407988270,1772975442292,-555.55555,0.000198,2]
[407988271,1772975442301,-555.55556,0.000198,2]
[407988272,1772975442310,-2000.0,0.000198,2]
[407988273,1772975442319,-2000.0,0.000198,2]
[407988274,1772975442329,-2000.0,0.000198,2]
[407988275,1772975442338,-2000.0,0.000198,2]
[407988276,1772975442348,-205.0,0.00019819,2]
[407988277,1772975442358,-151.0,0.00019824,2]
[407988278,1772975442483,-150.0,0.00019826,2]
[407988279,1772975442492,-350.0,0.00019828,2]
[407988280,1772975442501,-876.76,0.00019828,2]
[407988281,1772975442510,-500.0,0.00019873,2]
[407988282,1772975442519,-151.0,0.00019879,2]
[407988283,1772975442528,-929.0793,0.00019883,2]
[407988284,1772975442537,-548.41961263,0.0001989,2]
[407988285,1772975442546,-2129.0,0.00019896,2]
[407988286,1772975442555,-2000.0,0.000199,2]
[407988287,1772975442565,-2000.0,0.000199,2]
[407988288,1772975442573,-2000.0,0.000199,2]
[407988289,1772975442582,-10000.0,0.000199,2]
[407988290,1772975442591,-2000.0,0.000199,2]
[407988291,1772975442601,-2000.0,0.000199,2]
[407988292,1772975442610,-2000.0,0.000199,2]
[407988293,1772975442619,-2000.0,0.000199,2]
[407988294,1772975442629,-2000.0,0.000199,2]
[407988295,1772975442638,-2000.0,0.000199,2]
[407988296,1772975442647,-2000.0,0.000199,2]
[407988297,1772975442655,-175.98736152,0.000199,2]
[407988298,1772975442664,-2000.0,0.000199,2]
[407988299,1772975442674,-500.0,0.000199,2]
[407988300,1772975442683,-500.0,0.000199,2]
[407988301,1772975442692,-500.0,0.000199,2]
[407988302,1772975442701,-500.0,0.000199,2]
[407988303,1772975442710,-500.0,0.000199,2]
[407988304,1772975442719,-500.0,0.000199,2]
[407988305,1772975442728,-500.0,0.000199,2]
[407988306,1772975442737,-500.0,0.000199,2]
[407988307,1772975442746,-500.0,0.000199,2]
[407988308,1772975442755,-500.0,0.000199,2]
[407988309,1772975442763,-500.0,0.000199,2]
[407988310,1772975442772,-333.18627222,0.000199,2]
[407988311,1772975442781,-2000.0,0.000199,2]
[407988312,1772975442790,-2000.0,0.000199,2]
[407988313,1772975442799,-253.17054914,0.000199,2]
[407988314,1772975442807,-594.87813307,0.000199,2]
[407988315,1772975442816,-4410.85857175,0.000199,2]
[407988316,1772975442826,-347.62567208,0.000199,2]
[407988317,1772975442835,-6364.0,0.000199,2]
[407988318,1772975442844,-307.39,0.00019904,2]
[407988319,1772975442853,-350.0,0.00019914,2]
[407988320,1772975442862,-150.0,0.00019973,2]
[407988321,1772975442871,-150.0,0.00019979,2]
[407988322,1772975442880,-551.23395292,0.0001998,2]
[407988323,1772975442889,-151.0,0.0001998,2]
[407988324,1772975442898,-527333.4750797,0.00019983,2]
[407988325,1772975442907,-584324.2174456,0.00019983,2]
[407988326,1772975442916,-25970.2679823,0.00019983,2]
[407988327,1772975442926,-1425.8751472,0.00019983,2]
[407988328,1772975442934,-13580.9224646,0.00019983,2]
[407988329,1772975442943,-145891.2235156,0.00019983,2]
[407988330,1772975442952,-548.41961263,0.0001999,2]
[407988331,1772975442961,-151.0,0.00019997,2]
[407988332,1772975442970,-310.89756555,0.00019999,2]
[407988333,1772975442980,-300.0,0.00019999,2]
[407988334,1772975443000,-300.0,0.00019999,2]
[407988335,1772975443022,-666.0,0.00019999,2]
[407988336,1772975443046,-150.0,0.00019999,2]
[407988337,1772975443066,-215.40583698,0.00019999,2]
[407988338,1772975443089,-6326.0,0.0002,2]
[407988339,1772975443111,-2529170.25819241,0.0002,2]
[407988341,1772975443142,-2071.42197939,0.0002,2]
[407988344,1772975443166,-740.6202588,0.0002,2]
[407988346,1772975443191,-991.36007045,0.0002,2]
[407988348,1772975443217,-1932.48449802,0.0002,2]
[407988355,1772975443869,-10942.41841008,0.00014119,2]
[407988356,1772975443879,-534.41020395,0.0001998,2]
[407988357,1772975443889,-23509.77138597,0.0002,2]
[407988358,1772975443900,-4441158.93400903,0.0002,2]
[407988359,1772975444012,-33046.49760681,0.0002,2]
[407988360,1772975444033,-547.03466666,0.0002,2]
[407988361,1772975444497,-655.36256464,0.00017037,2]
[407988362,1772975444517,-186.4864029,0.00017037,2]
[407988363,1772975444527,-570.28460303,0.00017991,2]
[407988364,1772975444579,-554.72881122,0.00017991,2]
[407988365,1772975444594,-763.0,0.00017991,2]
[407988366,1772975444618,-4368.99855251,0.00017991,2]
[407988368,1772975446414,-268.1148,0.00014173,2]
[407988379,1772976230179,158.1,9.99e-05,2]
[407988380,1772976243332,-150.0,0.00012643,2]
[407988381,1772976243355,-250.0,0.00012713,2]
[407988382,1772976245010,250.0,0.00012678,2]
[407988383,1772976272371,-7770.0,0.00012783,2]
[407988400,1772976631355,-150.0,0.00012452,2]
[407988401,1772976631365,-201.5299975,0.00012452,2]
[407988402,1772976631422,-48.4700025,0.00012452,2]
[407988403,1772976631432,-252.0,0.00012452,2]
[407988404,1772976631442,-300.0,0.00012782,2]
[407988405,1772976631451,-300.0,0.00012782,2]
[407988406,1772976631461,-1200.0,0.00012782,2]
[407988407,1772976631471,-300.0,0.00012782,2]
[407988408,1772976631480,-11392.73,0.00012783,2]
[407988409,1772976631489,-200.0,0.00012832,2]
[407988410,1772976631499,-3626.662,0.00012841,2]
[407988411,1772976631508,-162.784,0.00012841,2]
[407988412,1772976631519,-3235.4008126,0.00012842,2]
[407988413,1772976631532,-1555.61475998,0.00012842,2]
[407988421,1772976631657,-6992.01442742,0.00012842,2]
[407988423,1772976631667,-5550.0,0.000129,2]
[407988425,1772976631677,-152.59084377,0.0001292,2]
[407988427,1772976631686,-4000.0,0.00013027,2]
[407988429,1772976631696,-309.16,0.00013151,2]
[407988431,1772976631705,-542.59073283,0.00013151,2]
[407988433,1772976631715,-150.0,0.00013151,2]
[407988435,1772976631724,-226.26946486,0.00013152,2]
[407988437,1772976631734,-4013.78435756,0.00013152,2]
[407988440,1772976631743,-280.61632252,0.00013152,2]
[407988442,1772976631752,-500.0,0.00013173,2]
[407988444,1772976631762,-500.27840832,0.00013173,2]
[407988446,1772976631771,-500.0,0.00013173,2]
[407988448,1772976631781,-500.0,0.00013173,2]
[407988450,1772976631790,-500.37983606,0.00013173,2]
[407988452,1772976631799,-500.0,0.00013173,2]
[407988454,1772976631809,-500.0,0.00013173,2]
[407988456,1772976631819,-627.75566029,0.00013173,2]
[407988458,1772976631829,-502.25687536,0.00013173,2]
[407988459,1772976631838,-500.0,0.00013173,2]
[407988461,1772976631848,-500.0,0.00013173,2]
[407988462,1772976631857,-500.0,0.00013173,2]
[407988463,1772976631867,-500.0,0.00013173,2]
[407988464,1772976631877,-500.23070569,0.00013173,2]
[407988465,1772976631887,-500.0,0.00013173,2]
[407988466,1772976631896,-500.0,0.00013173,2]
[407988467,1772976631906,-163.92515823,0.00013173,2]
[407988468,1772976631916,-204.51,0.00013173,2]
[407988469,1772976631926,-850.27697266,0.00013186,2]
[407988470,1772976631935,-607.50528381,0.00013188,2]
[407988471,1772976631945,-151.0,0.00013188,2]
[407988472,1772976631954,-151.0,0.00013188,2]
[407988473,1772976631963,-151.0,0.00013188,2]
[407988474,1772976631973,-151.0,0.00013188,2]
[407988475,1772976631982,-151.0,0.00013188,2]
[407988476,1772976631992,-151.0,0.00013188,2]
[407988477,1772976632001,-151.0,0.00013188,2]
[407988478,1772976632010,-151.0,0.00013188,2]
[407988479,1772976632023,-151.0,0.00013188,2]
[407988480,1772976632032,-151.0,0.00013188,2]
[407988481,1772976632041,-151.0,0.00013188,2]
[407988482,1772976632052,-151.0,0.00013188,2]
[407988483,1772976632063,-151.0,0.00013188,2]
[407988484,1772976632072,-151.0,0.00013188,2]
[407988485,1772976632081,-151.0,0.00013188,2]
[407988486,1772976632091,-151.0,0.00013188,2]
[407988487,1772976632100,-151.0,0.00013188,2]
[407988488,1772976632111,-151.0,0.00013188,2]
[407988489,1772976632121,-151.0,0.00013188,2]
[407988490,1772976632131,-151.0,0.00013188,2]
[407988491,1772976632140,-151.0,0.00013188,2]
[407988492,1772976632149,-151.0,0.00013188,2]
[407988493,1772976632158,-151.0,0.00013188,2]
[407988494,1772976632168,-151.0,0.00013188,2]
[407988495,1772976632177,-154.22309039,0.00013188,2]
[407988496,1772976632187,-4476.99615743,0.00013193,2]
[407988497,1772976632197,-151.0,0.00013193,2]
[407988498,1772976632206,-500.0,0.00013195,2]
[407988499,1772976632216,-404.42834153,0.00013195,2]
[407988500,1772976632226,-777.15108354,0.00013195,2]
[407988501,1772976632235,-777.15108354,0.00013195,2]
[407988502,1772976632244,-777.15108354,0.00013195,2]
[407988503,1772976632254,-777.15108354,0.00013195,2]
[407988504,1772976632264,-777.15108354,0.00013195,2]
[407988505,1772976632273,-777.15108354,0.00013195,2]
[407988506,1772976632282,-777.15108354,0.00013195,2]
[407988507,1772976632292,-777.15108354,0.00013195,2]
[407988508,1772976632301,-777.15108354,0.00013195,2]
[407988509,1772976632310,-777.15108354,0.00013195,2]
[407988510,1772976632320,-777.15108354,0.00013195,2]
[407988511,1772976632329,-777.15108354,0.00013195,2]
[407988512,1772976632339,-777.15108354,0.00013195,2]
[407988513,1772976632348,-777.15108354,0.00013195,2]
[407988514,1772976632358,-777.15108354,0.00013195,2]
[407988515,1772976632368,-777.15108354,0.00013195,2]
[407988516,1772976632377,-777.15108354,0.00013195,2]
[407988517,1772976632386,-777.15108354,0.00013195,2]
[407988518,1772976632395,-777.15108354,0.00013195,2]
[407988519,1772976632404,-777.15108354,0.00013195,2]
[407988520,1772976632414,-777.15108354,0.00013195,2]
[407988521,1772976632423,-777.15108354,0.00013195,2]
[407988522,1772976632433,-777.15108354,0.00013195,2]
[407988523,1772976632442,-777.15108354,0.00013195,2]
[407988524,1772976632451,-777.15108354,0.00013195,2]
[407988525,1772976632461,-777.15108354,0.00013195,2]
[407988526,1772976632471,-777.15108354,0.00013195,2]
[407988527,1772976632480,-777.15108354,0.00013195,2]
[407988528,1772976632489,-777.15108354,0.00013195,2]
[407988529,1772976632499,-777.15108354,0.00013195,2]
[407988530,1772976632510,-777.15108354,0.00013195,2]
[407988531,1772976632523,-777.15108354,0.00013195,2]
[407988532,1772976632533,-777.15108354,0.00013195,2]
[407988533,1772976632543,-777.15108354,0.00013195,2]
[407988534,1772976632552,-777.15108354,0.00013195,2]
[407988535,1772976632563,-777.15108354,0.00013195,2]
[407988536,1772976632572,-777.15108354,0.00013195,2]
[407988537,1772976632583,-777.15108354,0.00013195,2]
[407988538,1772976632594,-777.15108354,0.00013195,2]
[407988539,1772976632604,-777.15108354,0.00013195,2]
[407988540,1772976632614,-777.15108354,0.00013195,2]
[407988541,1772976632623,-777.15108354,0.00013195,2]
[407988542,1772976632856,-777.15108354,0.00013195,2]
[407988543,1772976632867,-777.15108354,0.00013195,2]
[407988544,1772976632881,-777.15108354,0.00013195,2]
[407988545,1772976632890,-777.15108354,0.00013195,2]
[407988546,1772976632900,-777.15108354,0.00013195,2]
[407988547,1772976632909,-777.15108354,0.00013195,2]
[407988548,1772976632919,-777.15108354,0.00013195,2]
[407988549,1772976632929,-777.15108354,0.00013195,2]
[407988550,1772976632938,-777.15108354,0.00013195,2]
[407988551,1772976632948,-777.15108354,0.00013195,2]
[407988552,1772976632957,-777.15108354,0.00013195,2]
[407988553,1772976632967,-777.15108354,0.00013195,2]
[407988554,1772976632976,-635.45639851,0.00013195,2]
[407988555,1772976632985,-777.15108354,0.00013195,2]
[407988556,1772976632994,-761.15091418,0.00013195,2]
[407988557,1772976633004,-761.15091418,0.00013195,2]
[407988558,1772976633013,-761.15091418,0.00013195,2]
[407988559,1772976633022,-761.15091418,0.00013195,2]
[407988560,1772976633031,-761.15091418,0.00013195,2]
[407988561,1772976633039,-761.15091418,0.00013195,2]
[407988562,1772976633048,-761.15091418,0.00013195,2]
[407988563,1772976633057,-761.15091418,0.00013195,2]
[407988564,1772976633066,-761.15091418,0.00013195,2]
[407988565,1772976633076,-761.15091418,0.00013195,2]
[407988566,1772976633085,-761.15091418,0.00013195,2]
[407988567,1772976633097,-761.15091418,0.00013195,2]
[407988568,1772976633106,-627575.70550444,0.00013196,2]
[407988569,1772976633539,-156259.72617648,0.00013196,2]
[407988570,1772976633550,-116959.98863172,0.00013196,2]
[407988571,1772976633563,-180103.90850408,0.00013196,2]
[407988572,1772976633574,-1254.41808677,0.00013196,2]
[407988584,1772976637472,-2500000.0,0.00012742,2]
[407988585,1772976637484,-761.15091418,0.00013195,2]
[407988586,1772976637495,-761.15091418,0.00013195,2]
[407988587,1772976637509,-761.15091418,0.00013195,2]
[407988588,1772976637521,-761.15091418,0.00013195,2]
[407988589,1772976637533,-761.15091418,0.00013195,2]
[407988590,1772976637544,-761.15091418,0.00013195,2]
[407988591,1772976637556,-761.15091418,0.00013195,2]
[407988592,1772976637567,-761.15091418,0.00013195,2]
[407988593,1772976637580,-761.15091418,0.00013195,2]
[407988594,1772976637591,-761.15091418,0.00013195,2]
[407988595,1772976637604,-761.15091418,0.00013195,2]
[407988596,1772976637616,-761.15091418,0.00013195,2]
[407988597,1772976637627,-761.15091418,0.00013195,2]
[407988598,1772976637638,-761.15091418,0.00013195,2]
[407988599,1772976637651,-761.15091418,0.00013195,2]
[407988600,1772976637663,-761.15091418,0.00013195,2]
[407988601,1772976637674,-761.15091418,0.00013195,2]
[407988602,1772976637684,-761.15091418,0.00013195,2]
[407988603,1772976637695,-500.0,0.00013195,2]
[407988604,1772976637706,-500.0,0.00013195,2]
[407988605,1772976637717,-761.15091418,0.00013195,2]
[407988606,1772976637727,-761.15091418,0.00013195,2]
[407988607,1772976637738,-500.0,0.00013195,2]
[407988608,1772976637749,-500.0,0.00013195,2]
[407988609,1772976637760,-500.0,0.00013195,2]
[407988610,1772976637770,-500.0,0.00013195,2]
[407988611,1772976637781,-500.0,0.00013195,2]
[407988612,1772976637792,-371.44850394,0.00013195,2]
[407988613,1772976637803,-9715.34851846,0.00013252,2]
[407988615,1772976637814,-5533.0,0.000133,3]
[407988617,1772976637824,-4000.0,0.00013352,2]
[407988618,1772976637835,-771.0,0.00013397,2]
[407988619,1772976637846,-1565.0,0.0001343,2]
[407988620,1772976637856,-204.51,0.00013447,2]
[407988621,1772976637867,-657.0,0.00013477,2]
[407988622,1772976637878,-342.75086956,0.00013573,2]
[407988623,1772976637889,-6757.03050922,0.00013573,2]
[407988624,1772976637900,-850.27697266,0.00013644,2]
[407988625,1772976637910,-1299758.6425,0.00013654,2]
[407988626,1772976637921,-500.34430685,0.00013673,2]
[407988627,1772976637932,-4000.0,0.00013678,2]
[407988628,1772976637943,-241.65069488,0.00013697,2]
[407988629,1772976637954,-250.0,0.00013697,2]
[407988630,1772976637965,-1862.89881802,0.00013697,2]
[407988631,1772976637977,-500.0,0.00013698,2]
[407988632,1772976637987,-500.0,0.00013698,2]
[407988633,1772976637998,-500.0,0.00013698,2]
[407988634,1772976638009,-462.18232633,0.00013698,2]
[407988635,1772976638019,-500.0,0.00013698,2]
[407988636,1772976638029,-500.0,0.00013698,2]
[407988637,1772976638041,-500.0,0.00013698,2]
[407988638,1772976638052,-500.0,0.00013698,2]
[407988639,1772976638063,-500.0,0.00013698,2]
[407988640,1772976638073,-500.0,0.00013698,2]
[407988641,1772976638084,-500.0,0.00013698,2]
[407988642,1772976638095,-500.0,0.00013698,2]
[407988643,1772976638105,-500.0,0.00013698,2]
[407988644,1772976638116,-500.0,0.00013698,2]
[407988645,1772976638127,-500.0,0.00013698,2]
[407988646,1772976638137,-500.0,0.00013698,2]
[407988647,1772976638148,-500.0,0.00013698,2]
[407988648,1772976638159,-500.0,0.00013698,2]
[407988649,1772976638169,-500.0,0.00013698,2]
[407988650,1772976638180,-500.0,0.00013698,2]
[407988651,1772976638191,-500.0,0.00013698,2]
[407988652,1772976638202,-522.2,0.00013698,2]
[407988653,1772976638212,-500.0,0.00013698,2]
[407988654,1772976638223,-500.0,0.00013698,2]
[407988655,1772976638234,-500.0,0.00013698,2]
[407988656,1772976638245,-500.0,0.00013698,2]
[407988657,1772976638255,-500.0,0.00013698,2]
[407988658,1772976638266,-484.28586364,0.00013698,2]
[407988659,1772976638276,-200.0,0.00013699,2]
[407988660,1772976638285,-490.11,0.00013699,2]
[407988661,1772976638295,-500.0,0.00013699,2]
[407988662,1772976638306,-500.0,0.00013699,2]
[407988663,1772976638316,-500.0,0.00013699,2]
[407988664,1772976638327,-500.0,0.00013699,2]
[407988665,1772976638338,-301.78790722,0.00013699,2]
[407988666,1772976638348,-500.0,0.00013699,2]
[407988667,1772976638359,-500.0,0.00013699,2]
[407988668,1772976638370,-500.0,0.00013699,2]
[407988669,1772976638380,-5533.0,0.000137,5]
[407988670,1772976638391,-501.60917986,0.00013721,2]
[407988671,1772976638401,-310.29179231,0.00013721,2]
[407988672,1772976638412,-726.88022743,0.00013721,2]
[407988673,1772976638423,-500.0,0.00013721,2]
[407988674,1772976638433,-1000.0,0.00013721,2]
[407988675,1772976638448,-1000.0,0.00013721,2]
[407988676,1772976638458,-204.51,0.00013721,2]
[407988677,1772976638469,-166.66,0.00013756,2]
[407988678,1772976638480,-9715.34851839,0.00013989,2]
[407988679,1772976638490,-235.29,0.00014,2]
[407988680,1772976638500,-151.0,0.00014001,2]
[407988681,1772976638511,-4000.0,0.00014004,2]
[407988682,1772976638525,-348.0,0.0001402,2]
[407988683,1772976638535,-420.0,0.0001402,2]
[407988684,1772976638547,-166.66,0.00014046,2]
[407988685,1772976638557,-1680.0,0.0001406,2]
[407988686,1772976638570,-4013.78435751,0.00014116,2]
[407988687,1772976638581,-239.26,0.00014156,2]
[407988688,1772976638591,-754.0,0.00014197,2]
[407988689,1772976638606,-1000.0,0.00014247,2]
[407988690,1772976638618,-683.82482855,0.00014247,2]
[407988691,1772976638955,-1000.0,0.00014247,2]
[407988692,1772976638965,-1000.0,0.00014247,2]
[407988693,1772976638974,-1000.0,0.00014247,2]
[407988694,1772976638983,-1883.16,0.00014249,2]
[407988695,1772976638992,-500.0,0.00014253,2]
[407988696,1772976639002,-500.0,0.00014256,2]
[407988697,1772976639011,-574.9589909,0.00014256,2]
[407988698,1772976639020,-500.0,0.00014256,2]
[407988699,1772976639029,-500.0,0.00014256,2]
[407988700,1772976639039,-513.917388,0.00014256,2]
[407988701,1772976639047,-255.0,0.00014256,2]
[407988702,1772976639056,-1500.0,0.00014268,2]
[407988703,1772976639065,-1500.0,0.00014268,2]
[407988704,1772976639075,-500.0,0.00014273,2]
[407988705,1772976639084,-226.26946481,0.00014277,2]
[407988706,1772976639093,-4000.0,0.00014329,2]
[407988707,1772976639103,-166.66,0.00014335,2]
[407988708,1772976639112,-235.29,0.00014339,2]
[407988709,1772976639121,-500.0,0.0001435,2]
[407988710,1772976639130,-500.0,0.0001435,2]
[407988711,1772976639139,-500.0,0.0001435,2]
[407988712,1772976639148,-500.0,0.0001435,2]
[407988713,1772976639158,-500.0,0.0001435,2]
[407988714,1772976639167,-500.0,0.0001435,2]
[407988715,1772976639176,-500.0,0.0001435,2]
[407988716,1772976639185,-500.0,0.0001435,2]
[407988717,1772976639196,-500.0,0.0001438,2]
[407988718,1772976639206,-500.0,0.0001438,2]
[407988719,1772976639215,-500.0,0.0001438,2]
[407988720,1772976639224,-500.0,0.00014458,2]
[407988721,1772976639233,-166.66,0.00014625,2]
[407988722,1772976639243,-151.0,0.00014634,2]
[407988723,1772976639252,-151.0,0.00014634,2]
[407988724,1772976639261,-151.0,0.00014634,2]
[407988725,1772976639271,-235.29,0.00014678,2]
[407988726,1772976639280,-4179.08,0.00014711,2]
[407988727,1772976639289,-9715.34851839,0.00014726,2]
[407988728,1772976639298,-636.56676804,0.00014795,2]
[407988729,1772976639307,-785.42431869,0.00014795,2]
[407988730,1772976639316,-500.0,0.00014795,2]
[407988731,1772976639325,-1500.0,0.00014795,2]
[407988732,1772976639335,-2000.0,0.00014816,2]
[407988733,1772976639344,-2000.0,0.00014816,2]
[407988734,1772976639354,-4179.08,0.0001482,2]
[407988735,1772976639362,-1000.0,0.00014821,2]
[407988736,1772976639371,-1292.3,0.00014853,2]
[407988737,1772976639380,-1000.0,0.00014898,2]
[407988738,1772976639390,-449.5306254,0.00014898,2]
[407988739,1772976639399,-500.0,0.00014898,2]
[407988740,1772976639408,-1000.0,0.00014898,2]
[407988741,1772976639417,-500.0,0.00014898,2]
[407988742,1772976639426,-1000.0,0.00014898,2]
[407988743,1772976639436,-1000.0,0.00014898,2]
[407988745,1772976639445,-1000.0,0.00014898,2]
[407988746,1772976639454,-166.66,0.00014914,2]
[407988747,1772976639463,-1000.0,0.00014928,2]
[407988748,1772976639472,-793.77158202,0.00014928,2]
[407988749,1772976639481,-1000.0,0.00014928,2]
[407988750,1772976639491,-4179.07,0.00014928,2]
[407988751,1772976639499,-239.26,0.00014943,2]
[407988752,1772976639509,-500.0,0.00015,30]
[407988753,1772976639519,-500.0,0.00015,30]
[407988754,1772976639531,-500.0,0.00015,30]
[407988755,1772976639540,-505.76633109,0.00015,30]
[407988756,1772976639549,-500.0,0.00015,30]
[407988757,1772976639558,-500.0,0.00015,30]
[407988758,1772976639569,-500.0,0.00015,30]
[407988759,1772976639578,-500.0,0.00015,30]
[407988760,1772976639587,-500.0,0.00015,30]
[407988761,1772976639597,-500.0,0.00015,30]
[407988762,1772976639607,-636.54725451,0.00015,30]
[407988763,1772976639616,-500.0,0.00015,30]
[407988764,1772976639625,-1000.0,0.00015006,2]
[407988765,1772976639634,-235.29,0.00015017,2]
[407988766,1772976639643,-4013.78435751,0.0001508,2]